{"text_format":"1","workbook":"xlsx","n_sheets":1,"sheets":["1"],"not_rendered":{"charts":0,"images":0,"macros":1,"external_links":0,"defined_names":0,"comments":0,"pivot_tables":0},"unopened":[],"bounds":{"document_bytes":16777216,"sheet_cells":100000,"rows_first":2000,"rows_last":500,"rows_between":2000,"halvings":0,"cell_chars":16384,"cell_head_chars":4096},"cells_cut":0,"cells_raw":0,"read":"whole","date_system":"1900"}

{"sheet":"1","index":0,"n_rows":63,"n_cols":83,"rows_kept":63,"cut":false,"hidden":false,"merged":[[46,37,46,40],[46,41,46,44],[47,37,47,40],[47,41,47,44],[43,37,43,40],[43,41,43,44],[44,37,44,40],[44,41,44,44],[45,37,45,40],[45,41,45,44],[40,37,40,40],[40,41,40,44],[41,37,41,40],[41,41,41,44],[42,37,42,40],[42,41,42,44],[37,37,37,40],[37,41,37,44],[38,37,38,40],[38,41,38,44],[39,37,39,40],[39,41,39,44],[34,37,34,40],[34,41,34,44],[35,37,35,40],[35,41,35,44],[36,37,36,40],[36,41,36,44],[31,37,31,40],[31,41,31,44],[32,37,32,40],[32,41,32,44],[33,37,33,40],[33,41,33,44],[28,37,28,40],[28,41,28,44],[29,37,29,40],[29,41,29,44],[30,37,30,40],[30,41,30,44],[25,37,25,40],[25,41,25,44],[26,37,26,40],[26,41,26,44],[27,37,27,40],[27,41,27,44],[22,37,22,40],[22,41,22,44],[23,37,23,40],[23,41,23,44],[24,37,24,40],[24,41,24,44],[19,37,19,40],[19,41,19,44],[20,37,20,40],[20,41,20,44],[21,37,21,40],[21,41,21,44],[16,37,16,40],[16,41,16,44],[17,37,17,40],[17,41,17,44],[18,37,18,40],[18,41,18,44],[13,37,13,40],[13,41,13,44],[14,37,14,40],[14,41,14,44],[15,37,15,40],[15,41,15,44],[10,37,10,40],[10,41,10,44],[11,37,11,40],[11,41,11,44],[12,37,12,40],[12,41,12,44],[7,37,7,40],[7,41,7,44],[8,37,8,40],[8,41,8,44],[9,37,9,40],[9,41,9,44],[4,37,4,40],[4,41,4,44],[5,37,5,40],[5,41,5,44],[6,37,6,40],[6,41,6,44],[1,37,1,40],[1,41,1,44],[2,37,2,40],[2,41,2,44],[3,37,3,40],[3,41,3,44]]}
[null,null,null,null,null,null,null,null,null,null,null,null,null,null,null,null,null,null,null,null,null,null,null,null,null,null,null,null,null,null,null,null,null,null,null,null,null,null,null,null,null,"Версия:"]
[null,null,null,null,null,null,null,null,null,null,null,null,null,null,null,null,null,null,null,null,null,null,null,null,null,null,null,null,null,null,null,null,null,null,null,null,5,null,null,null,null,"03.19 Pampers pants"]
[null,null,"Апрель",null,null,null,null,null,null,null,null,null,null,null,null,null,null,null,null,null,null,null,null,null,null,null,null,null,null,null,null,null,null,null,null,null,5,null,null,null,null,"03.19 Nestle",null,null,null,null,null,null,null,null,null,null,"Апрель"]
[null,null,1,2,3,4,5,6,7,8,9,10,11,12,13,14,15,16,17,18,19,20,21,22,23,24,25,26,27,28,29,30,null,null,null,null,5,null,null,null,null,"03.19 Полесье",null,null,null,null,null,null,null,null,null,null,1,2,3,4,5,6,7,8,9,10,11,12,13,14,15,16,17,18,19,20,21,22,23,24,25,26,27,28,29,30]
[null,null,null,null,null,null,null,null,null,null,null,null,null,null,null,null,null,null,null,null,null,null,null,null,null,null,null,null,null,null,null,null,null,null,null,null,5,null,null,null,null,"03.19 Huggies Ultra"]
["07:05","перед",null,null,5,5,5,5,5,5,5,5,5,null,10,10,5,5,5,5,5,5,5,5,5,null,null,null,null,null,null,null,null,null,null,null,5,null,null,null,null,"03.19 Kabrita",null,null,null,null,null,null,null,null,"Версия:","Версия:",null,null," Sale 04.19"," Sale 04.19"," Sale 04.19"," Sale 04.19"," Sale 04.19"," Sale 04.19"," Sale 04.19"," Sale 04.19","04.19 Fisher Price",null,"04.19 My Little Pony","04.19 My Little Pony","04.19 Fisher Price","04.19 Fisher Price","04.19 Fisher Price","04.19 Fisher Price","04.19 Fisher Price","04.19 Fisher Price","04.19 Fisher Price"," 04.19 NAN"," 04.19 NAN"]
["07:20","перед",null,null,null,null,null,null,null,null,null,null,5,5,5,5,null,null,null,10,10,10,10,null,null,null,null,null,null,null,null,null,null,null,null,null,5,null,null,null,null,"03.19 Gerber",null,null,null,null,null,null,null,null,"07:20","перед",null,null,null,null,null,null,null,null,null,null,"04.19 Фрутоняня","04.19 Фрутоняня","04.19 Фрутоняня","04.19 Фрутоняня",null,null,null,"04.19 Nerf","04.19 Nerf","04.19 Nerf","04.19 Nerf"]
["07:35","перед",null,null,null,null,null,null,5,null,null,null,5,5,5,5,10,10,10,10,10,10,10,10,10,null,null,null,null,null,null,null,null,null,null,null,5,null,null,null,null,"03.19 Nutrilon",null,null,null,null,null,null,null,null,"07:35","перед",null,null,null,null,null,null," Sale 04.19",null,null,null,"04.19 Moony","04.19 Moony","04.19 Moony","04.19 Moony","04.19 Transformers","04.19 Transformers","04.19 Transformers","04.19 Transformers","04.19 Transformers","04.19 Transformers","04.19 Transformers","04.19 Treasure X","04.19 Treasure X"]
["07:50","перед",null,null,5,null,null,null,null,null,null,null,null,null,null,null,null,null,null,null,null,null,null,null,null,null,null,null,null,null,null,null,null,null,null,null,5,null,null,null,null,"2_03.19 Тёма консервы",null,null,null,null,null,null,null,null,"07:50","перед",null,null," Sale 04.19"]
["08:05","перед",null,null,null,5,5,5,5,5,5,5,5,5,5,5,5,5,5,5,5,5,5,null,null,null,null,null,null,null,null,null,null,null,null,null,5,null,null,null,null,"03.19 Huggies Classic",null,null,null,null,null,null,null,null,"08:05","перед",null,null,null," Sale 04.19"," Sale 04.19"," Sale 04.19"," Sale 04.19"," Sale 04.19"," Sale 04.19"," Sale 04.19"," Sale 04.19"," Sale 04.19"," Sale 04.19"," Sale 04.19","04.19 Фрутоняня","04.19 Фрутоняня","04.19 Фрутоняня","04.19 Фрутоняня","04.19 Фрутоняня","04.19 Фрутоняня","04.19 Фрутоняня"]
["08:20","перед",null,null,null,null,null,null,null,5,5,null,5,5,5,5,5,5,5,5,5,5,5,null,null,null,null,null,null,null,null,null,null,null,null,null,5,null,null,null,null,"03.19 Pampers premium",null,null,null,null,null,null,null,null,"08:20","перед",null,null,null,null,null,null,null," Sale 04.19"," Sale 04.19",null,"04.19 Fisher Price","04.19 Фрутоняня","04.19 Moony","04.19 Moony","04.19 Fisher Price","04.19 Fisher Price"," 04.19 NAN"," 04.19 NAN"," 04.19 NAN"," 04.19 NAN"," 04.19 NAN"]
["08:35","перед",null,null,null,5,5,5,5,null,null,null,10,10,null,null,null,10,10,10,10,10,10,null,null,null,null,null,null,null,null,null,null,null,null,null,5,null,null,null,null,"03.19 Бабушкино лукошко",null,null,null,null,null,null,null,null,"08:35","перед",null,null,null," Sale 04.19"," Sale 04.19"," Sale 04.19"," Sale 04.19",null,null,null,"04.19 My Little Pony","04.19 My Little Pony",null,null,null,"04.19 Mobicaro","04.19 Mobicaro","04.19 Nerf","04.19 Nerf","04.19 Nerf","04.19 Nerf"]
["08:50","перед",null,null,5,null,null,null,null,null,null,null,null,null,null,null,null,null,null,null,null,null,null,null,null,null,null,null,null,null,null,null,null,null,null,null,5,null,null,null,null,"03.19 Малютка",null,null,null,null,null,null,null,null,"08:50","перед",null,null," Sale 04.19"]
["09:05","перед",null,null,5,5,5,5,5,5,5,5,5,5,5,5,5,5,5,5,5,null,null,null,10,5,null,null,null,null,null,null,null,null,null,null,5,null,null,null,null,"03.19 NAN",null,null,null,null,null,null,null,null,"09:05","перед",null,null," Sale 04.19"," Sale 04.19"," Sale 04.19"," Sale 04.19"," Sale 04.19"," Sale 04.19"," Sale 04.19"," Sale 04.19"," Sale 04.19"," Sale 04.19"," Sale 04.19"," Sale 04.19","04.19 Фрутоняня","04.19 Фрутоняня","04.19 Фрутоняня","04.19 Fisher Price","04.19 Fisher Price",null,null,null,"04.19 Jurassiс World","04.19 Nestle"]
["09:20","перед",null,null,null,null,null,null,null,null,null,null,5,5,5,10,5,5,5,5,5,5,5,null,null,null,null,null,null,null,null,null,null,null,null,null,5,null,null,null,null,"03.19 Тёма сок",null,null,null,null,null,null,null,null,"09:20","перед",null,null,null,null,null,null,null,null,null,null," 04.19 NAN"," 04.19 NAN"," 04.19 NAN","04.19 Barbie","04.19 Moony","04.19 Moony","04.19 Moony","04.19 Moony","04.19 Moony","04.19 Moony","04.19 Moony"]
["09:35","перед",null,null,5,5,5,5,5,null,null,null,5,5,5,5,null,null,null,10,null,null,null,null,null,null,null,null,null,null,null,null,null,null,null,null,15,null,null,null,null,"03.19 Futurino футболка",null,null,null,null,null,null,null,null,"09:35","перед",null,null," Sale 04.19"," Sale 04.19"," Sale 04.19"," Sale 04.19"," Sale 04.19",null,null,null,"04.19 Fisher Price","04.19 Fisher Price","04.19 Fisher Price","04.19 Fisher Price",null,null,null,"04.19 Mega Bloks"]
["10:05","перед",null,null,null,5,5,5,5,5,5,5,5,5,5,5,10,10,10,10,5,5,5,5,5,5,null,null,null,null,null,null,null,null,null,null,15,null,null,null,null,"03.19 Jomoto кроссовки",null,null,null,null,null,null,null,null,"10:05","перед",null,null,null," Sale 04.19"," Sale 04.19"," Sale 04.19"," Sale 04.19"," Sale 04.19"," Sale 04.19"," Sale 04.19"," Sale 04.19"," Sale 04.19"," Sale 04.19"," Sale 04.19","04.19 Jurassiс World","04.19 Jurassiс World","04.19 Jurassiс World","04.19 Jurassiс World","04.19 Moony","04.19 Moony","04.19 Moony","04.19 Фрутоняня","04.19 Nestle","04.19 Фрутоняня"]
["10:20","перед",null,null,5,null,null,null,null,null,null,null,5,5,5,5,null,null,null,10,null,null,null,5,5,5,null,null,null,null,null,null,null,null,null,null,15,null,null,null,null," 03.19 Baby Go джинсы",null,null,null,null,null,null,null,null,"10:20","перед",null,null," Sale 04.19",null,null,null,null,null,null,null,"04.19 Huggies подгузники","04.19 Huggies подгузники","04.19 Huggies подгузники","04.19 Huggies подгузники",null,null,null,"04.19 Transformers",null,null,null,"04.19 Fleur Alpine","04.19 Fisher Price","04.19 Fisher Price"]
["10:35","перед",null,null,5,5,5,5,5,null,null,null,10,10,10,10,10,10,10,10,10,10,10,10,10,10,null,null,null,null,null,null,null,null,null,null,15,null,null,null,null,"03.19 Baby Go куртка",null,null,null,null,null,null,null,null,"10:35","перед",null,null," Sale 04.19"," Sale 04.19"," Sale 04.19"," Sale 04.19"," Sale 04.19",null,null,null,"04.19 Barbie","04.19 Barbie","04.19 Barbie","04.19 Barbie","04.19 My Little Pony","04.19 My Little Pony","04.19 My Little Pony","04.19 My Little Pony","04.19 My Little Pony","04.19 My Little Pony","04.19 My Little Pony","04.19 Jurassiс World","04.19 Jurassiс World","04.19 Jurassiс World"]
["10:50","перед",null,null,null,null,null,null,null,null,null,null,null,null,null,null,null,null,null,null,null,null,null,5,5,5,null,null,null,null,null,null,null,null,null,null,15,null,null,null,null,"03.19 Futurino джинсы",null,null,null,null,null,null,null,null,"10:50","перед",null,null,null,null,null,null,null,null,null,null,null,null,null,null,null,null,null,null,null,null,null,"04.19 Фрутоняня","04.19 Фрутоняня","04.19 Фрутоняня"]
["11:05","перед",null,null,5,5,5,5,5,5,5,5,5,5,5,5,5,5,5,5,5,null,null,5,5,5,null,null,null,null,null,null,null,null,null,null,15,null,null,null,null,"03.19 Futurino куртка",null,null,null,null,null,null,null,null,"11:05","перед",null,null," Sale 04.19"," Sale 04.19"," Sale 04.19"," Sale 04.19"," Sale 04.19"," Sale 04.19"," Sale 04.19"," Sale 04.19"," Sale 04.19"," Sale 04.19"," Sale 04.19"," Sale 04.19","04.19 Nestle","04.19 Nestle","04.19 Nestle","04.19 Nestle","04.19 Nestle",null,null,"04.19 Moony","04.19 Moony","04.19 Moony"]
["11:20","перед",null,null,null,null,null,null,null,null,null,null,5,5,5,null,null,10,null,null,null,null,null,10,10,10,null,null,null,null,null,null,null,null,null,null,5,null,null,null,null," Sale 04.19",null,null,null,null,null,null,null,null,"11:20","перед",null,null,null,null,null,null,null,null,null,null,"04.19 Малютка","04.19 Малютка","04.19 Малютка",null,null,"04.19 My Little Pony",null,null,null,null,null,"04.19 Mega Bloks","04.19 Mega Bloks","04.19 Mega Bloks"]
["11:35","перед",null,null,null,null,null,null,null,null,null,null,10,10,10,null,null,null,null,null,null,null,null,null,null,null,null,null,null,null,null,null,null,null,null,null,5,null,null,null,null,"04.19 Фрутоняня",null,null,null,null,null,null,null,null,"11:35","перед",null,null,null,null,null,null,null,null,null,null,"04.19 Lego City","04.19 Lego City","04.19 Lego City"]
["11:50","перед",null,null,null,null,null,null,null,null,null,null,null,null,5,5,null,null,null,null,null,null,null,null,null,null,null,null,null,null,null,null,null,null,null,null,5,null,null,null,null,"04.19 Малютка",null,null,null,null,null,null,null,null,"11:50","перед",null,null,null,null,null,null,null,null,null,null,null,null,"04.19 Huggies подгузники","04.19 Huggies подгузники"]
["12:05","перед",null,null,null,5,5,5,5,5,5,5,5,5,5,5,5,5,5,5,5,null,null,5,5,5,null,null,null,null,null,null,null,null,null,null,5,null,null,null,null,"04.19 Pampers premium",null,null,null,null,null,null,null,null,"12:05","перед",null,null,null," Sale 04.19"," Sale 04.19"," Sale 04.19"," Sale 04.19"," Sale 04.19"," Sale 04.19"," Sale 04.19"," Sale 04.19"," Sale 04.19"," Sale 04.19"," Sale 04.19","04.19 Малютка","04.19 Малютка","04.19 Малютка","04.19 Малютка","04.19 Малютка",null,null,"04.19 Moony","04.19 Moony","04.19 Nutrilon"]
["12:20","перед",null,null,5,null,null,null,null,null,null,null,5,5,5,null,5,5,5,5,5,5,5,5,5,null,null,null,null,null,null,null,null,null,null,null,5,null,null,null,null,"04.19 Nutrilon",null,null,null,null,null,null,null,null,"12:20","перед",null,null," Sale 04.19",null,null,null,null,null,null,null,"04.19 Nestle","04.19 Nestle","04.19 Nestle",null,"04.19 Huggies подгузники","04.19 Huggies подгузники","04.19 Huggies подгузники","04.19 Huggies подгузники","04.19 Huggies подгузники","04.19 Huggies подгузники","04.19 Huggies подгузники","04.19 Fisher Price","04.19 Fisher Price"]
["12:35","перед",null,null,null,null,null,null,null,null,null,null,10,10,10,10,10,10,10,10,10,10,10,null,10,10,null,null,null,null,null,null,null,null,null,null,5,null,null,null,null,"04.19 Nestle",null,null,null,null,null,null,null,null,"12:35","перед",null,null,null,null,null,null,null,null,null,null,"04.19 Lego City","04.19 Lego City","04.19 Mobicaro","04.19 Mobicaro","04.19 Barbie","04.19 Barbie","04.19 Barbie","04.19 Barbie","04.19 Barbie","04.19 Barbie","04.19 Barbie",null,"04.19 Mobicaro","04.19 Mega Bloks"]
["12:50","перед",null,null,null,null,null,null,null,null,null,null,5,5,5,5,null,null,null,null,null,null,null,null,null,null,null,null,null,null,null,null,null,null,null,null,5,null,null,null,null," 04.19 NAN",null,null,null,null,null,null,null,null,"12:50","перед",null,null,null,null,null,null,null,null,null,null,"04.19 Huggies трусики","04.19 Huggies трусики","04.19 Huggies трусики","04.19 Huggies трусики"]
["13:05","перед",null,null,null,5,5,5,5,5,5,5,5,5,5,5,10,10,10,10,5,5,5,5,5,5,null,null,null,null,null,null,null,null,null,null,5,null,null,null,null,"04.19 Moony",null,null,null,null,null,null,null,null,"13:05","перед",null,null,null," Sale 04.19"," Sale 04.19"," Sale 04.19"," Sale 04.19"," Sale 04.19"," Sale 04.19"," Sale 04.19"," Sale 04.19"," Sale 04.19"," Sale 04.19"," Sale 04.19","04.19 Jurassiс World","04.19 Jurassiс World","04.19 Jurassiс World","04.19 Jurassiс World","04.19 Huggies подгузники","04.19 Huggies подгузники","04.19 Huggies подгузники","04.19 Малютка","04.19 Nutrilon","04.19 Малютка"]
["13:20","перед",null,null,5,null,null,null,null,null,null,null,null,null,5,5,null,null,null,10,null,null,null,10,10,10,null,null,null,null,null,null,null,null,null,null,5,null,null,null,null,"04.19 Huggies трусики",null,null,null,null,null,null,null,null,"13:20","перед",null,null," Sale 04.19",null,null,null,null,null,null,null,null,null,"04.19 Huggies трусики","04.19 Huggies трусики",null,null,null,"04.19 Treasure X",null,null,null,"04.19 Barbie","04.19 Barbie","04.19 Barbie"]
["13:35","перед",null,null,null,null,null,null,null,null,null,null,5,5,5,5,null,null,null,null,null,null,null,null,null,null,null,null,null,null,null,null,null,null,null,null,5,null,null,null,null,"04.19 Huggies подгузники",null,null,null,null,null,null,null,null,"13:35","перед",null,null,null,null,null,null,null,null,null,null,"04.19 Baby Go","04.19 Baby Go","04.19 Baby Go","04.19 Baby Go"]
["13:50","перед",null,null,null,null,null,null,null,null,null,null,null,null,null,null,10,10,10,10,10,10,10,null,null,null,null,null,null,null,null,null,null,null,null,null,5,null,null,null,null,"04.19 Heinz",null,null,null,null,null,null,null,null,"13:50","перед",null,null,null,null,null,null,null,null,null,null,null,null,null,null,"04.19 Treasure X","04.19 Treasure X","04.19 Treasure X","04.19 Treasure X","04.19 Treasure X","04.19 Treasure X","04.19 Treasure X"]
["14:20","перед",null,null,null,5,5,5,5,5,5,5,5,5,5,5,5,5,5,5,5,null,null,5,5,5,null,null,null,null,null,null,null,null,null,null,5,null,null,null,null,"04.19 Friso",null,null,null,null,null,null,null,null,"14:20","перед",null,null,null," Sale 04.19"," Sale 04.19"," Sale 04.19"," Sale 04.19"," Sale 04.19"," Sale 04.19"," Sale 04.19"," Sale 04.19"," Sale 04.19"," Sale 04.19"," Sale 04.19","04.19 Nutrilon","04.19 Nutrilon","04.19 Nutrilon","04.19 Nutrilon","04.19 Nutrilon",null,null,"04.19 Huggies подгузники","04.19 Huggies подгузники","04.19 Huggies подгузники"]
["14:35","перед",null,null,5,null,null,null,null,null,null,null,5,5,5,5,5,5,5,5,5,5,5,5,5,5,null,null,null,null,null,null,null,null,null,null,5,null,null,null,null,"04.19 Fleur Alpine",null,null,null,null,null,null,null,null,"14:35","перед",null,null," Sale 04.19",null,null,null,null,null,null,null,"04.19 Pampers premium","04.19 Pampers premium","04.19 Pampers premium","04.19 Pampers premium","04.19 Huggies трусики","04.19 Huggies трусики","04.19 Huggies трусики","04.19 Huggies трусики","04.19 Huggies трусики","04.19 Huggies трусики","04.19 Huggies трусики","04.19 Fleur Alpine","04.19 Fleur Alpine","04.19 Fleur Alpine"]
["14:50","перед",null,null,null,null,null,null,null,null,null,null,10,10,10,10,null,null,null,null,null,null,null,10,10,10,null,null,null,null,null,null,null,null,null,null,5,null,null,null,null,"04.19 Fisher Price",null,null,null,null,null,null,null,null,"14:50","перед",null,null,null,null,null,null,null,null,null,null,"04.19 DemiStar","04.19 DemiStar","04.19 DemiStar","04.19 DemiStar",null,null,null,null,null,null,null,"04.19 Mobicaro","04.19 Mobicaro","04.19 Nerf"]
["15:05","перед",null,null,5,5,5,5,5,5,5,5,5,5,5,5,5,5,5,5,5,5,5,5,5,5,null,null,null,null,null,null,null,null,null,null,5,null,null,null,null,"04.19 Baby Go",null,null,null,null,null,null,null,null,"15:05","перед",null,null," Sale 04.19"," Sale 04.19"," Sale 04.19"," Sale 04.19"," Sale 04.19"," Sale 04.19"," Sale 04.19"," Sale 04.19"," Sale 04.19"," Sale 04.19"," Sale 04.19"," Sale 04.19","04.19 Huggies трусики","04.19 Huggies трусики","04.19 Huggies трусики","04.19 Fleur Alpine","04.19 Fleur Alpine","04.19 Fleur Alpine","04.19 Fleur Alpine","04.19 Pampers pants","04.19 Pampers pants","04.19 Huggies трусики"]
["15:20","перед",null,null,null,null,null,null,null,null,null,null,5,5,5,5,10,10,10,10,10,10,10,10,10,10,null,null,null,null,null,null,null,null,null,null,10,null,null,null,null,"04.19 My Little Pony",null,null,null,null,null,null,null,null,"15:20","перед",null,null,null,null,null,null,null,null,null,null,"04.19 Pampers premium","04.19 Nutrilon","04.19 Nutrilon","04.19 Nutrilon","04.19 DemiStar","04.19 DemiStar","04.19 DemiStar","04.19 DemiStar","04.19 DemiStar","04.19 DemiStar","04.19 DemiStar","04.19 Nerf","04.19 Nerf","04.19 Nerf"]
["15:35","перед",null,null,null,null,null,null,null,null,null,null,5,5,null,null,null,null,null,null,null,null,null,5,null,null,null,null,null,null,null,null,null,null,null,null,5,null,null,null,null,"04.19 Pampers pants",null,null,null,null,null,null,null,null,"15:35","перед",null,null,null,null,null,null,null,null,null,null,"04.19 Baby Go","04.19 Baby Go",null,null,null,null,null,null,null,null,null,"04.19 Huggies подгузники"]
["16:20","перед",null,null,5,5,5,5,5,5,5,5,5,5,5,5,5,5,5,5,5,5,5,5,5,5,null,null,null,null,null,null,null,null,null,null,10,null,null,null,null,"04.19 Barbie",null,null,null,null,null,null,null,null,"16:20","перед",null,null," Sale 04.19"," Sale 04.19"," Sale 04.19"," Sale 04.19"," Sale 04.19"," Sale 04.19"," Sale 04.19"," Sale 04.19"," Sale 04.19"," Sale 04.19"," Sale 04.19"," Sale 04.19","04.19 Pampers premium","04.19 Pampers premium","04.19 Pampers premium","04.19 Pampers premium","04.19 Pampers premium","04.19 Pampers premium","04.19 Pampers premium","04.19 Pampers pants","04.19 Pampers pants","04.19 Pampers pants"]
["16:35","перед",null,null,null,null,null,null,null,null,null,null,10,10,10,10,10,10,10,10,10,10,10,10,10,10,null,null,null,null,null,null,null,null,null,null,10,null,null,null,null,"04.19 DemiStar",null,null,null,null,null,null,null,null,"16:35","перед",null,null,null,null,null,null,null,null,null,null,"04.19 Mobicaro","04.19 Mobicaro","04.19 Mobicaro","04.19 My Little Pony","04.19 Lego City","04.19 Lego City","04.19 Lego City","04.19 Lego City","04.19 Lego City","04.19 Lego City","04.19 Lego City","04.19 Transformers","04.19 Transformers","04.19 Transformers"]
["16:50","перед",null,null,null,null,null,null,null,null,null,null,5,5,5,5,5,5,5,5,5,5,5,5,5,5,null,null,null,null,null,null,null,null,null,null,10,null,null,null,null,"04.19 FurReal",null,null,null,null,null,null,null,null,"16:50","перед",null,null,null,null,null,null,null,null,null,null,"04.19 Heinz","04.19 Heinz","04.19 Heinz","04.19 Heinz","04.19 Fleur Alpine","04.19 Fleur Alpine","04.19 Fleur Alpine","04.19 Fleur Alpine","04.19 Fleur Alpine","04.19 Fleur Alpine","04.19 Fleur Alpine","04.19 Huggies трусики","04.19 Huggies трусики","04.19 Huggies трусики"]
["17:05","перед",null,null,5,5,5,5,5,5,5,5,5,5,5,5,5,5,5,5,5,5,null,10,10,10,null,null,null,null,null,null,null,null,null,null,10,null,null,null,null,"04.19 Jurassiс World",null,null,null,null,null,null,null,null,"17:05","перед",null,null," Sale 04.19"," Sale 04.19"," Sale 04.19"," Sale 04.19"," Sale 04.19"," Sale 04.19"," Sale 04.19"," Sale 04.19"," Sale 04.19"," Sale 04.19"," Sale 04.19"," Sale 04.19","04.19 Pampers premium","04.19 Pampers premium","04.19 Pampers premium","04.19 Pampers pants","04.19 Pampers pants","04.19 Pampers pants",null,"04.19 DemiStar","04.19 DemiStar","04.19 DemiStar"]
["17:20","перед",null,null,null,null,null,null,null,null,null,null,null,5,5,5,5,5,5,5,5,5,5,null,null,null,null,null,null,null,null,null,null,null,null,null,10,null,null,null,null,"04.19 Lego City",null,null,null,null,null,null,null,null,"17:20","перед",null,null,null,null,null,null,null,null,null,null,null,"04.19 Fleur Alpine","04.19 Heinz","04.19 Heinz","04.19 Baby Go","04.19 Baby Go","04.19 Baby Go","04.19 Baby Go","04.19 Baby Go","04.19 Baby Go","04.19 Baby Go"]
["17:35","перед",null,null,null,null,null,null,null,null,null,null,10,10,10,10,null,null,null,10,null,null,null,10,10,10,null,null,null,null,null,null,null,null,null,null,10,null,null,null,null,"04.19 Mega Bloks",null,null,null,null,null,null,null,null,"17:35","перед",null,null,null,null,null,null,null,null,null,null,"04.19 Treasure X","04.19 Treasure X","04.19 Treasure X","04.19 Treasure X",null,null,null,"04.19 DemiStar",null,null,null,"04.19 My Little Pony","04.19 My Little Pony","04.19 My Little Pony"]
["18:20","перед",null,null,5,5,5,5,5,5,5,5,5,5,5,5,5,5,5,5,5,5,5,5,5,5,null,null,null,null,null,null,null,null,null,null,10,null,null,null,null,"04.19 Mobicaro",null,null,null,null,null,null,null,null,"18:20","перед",null,null," Sale 04.19"," Sale 04.19"," Sale 04.19"," Sale 04.19"," Sale 04.19"," Sale 04.19"," Sale 04.19"," Sale 04.19"," Sale 04.19"," Sale 04.19"," Sale 04.19"," Sale 04.19","04.19 Pampers pants","04.19 Pampers pants","04.19 Pampers pants","04.19 Pampers pants","04.19 Pampers pants","04.19 Pampers pants","04.19 Pampers pants","04.19 Pampers premium","04.19 Pampers premium","04.19 Pampers premium"]
["18:35","перед",null,null,null,null,null,null,null,null,null,null,10,10,10,10,5,5,5,5,5,5,5,null,null,10,null,null,null,null,null,null,null,null,null,null,10,null,null,null,null,"04.19 Nerf",null,null,null,null,null,null,null,null,"18:35","перед",null,null,null,null,null,null,null,null,null,null,"04.19 FurReal","04.19 FurReal","04.19 FurReal","04.19 FurReal","04.19 Heinz","04.19 Heinz","04.19 Heinz","04.19 Heinz","04.19 Heinz","04.19 Heinz","04.19 Heinz",null,null,"04.19 Lego City"]
["18:50","перед",null,null,null,null,null,null,null,null,null,null,null,null,null,null,10,10,10,10,10,10,10,null,null,null,null,null,null,null,null,null,null,null,null,null,10,null,null,null,null,"04.19 Transformers",null,null,null,null,null,null,null,null,"18:50","перед",null,null,null,null,null,null,null,null,null,null,null,null,null,null,"04.19 Lego City","04.19 Mobicaro","04.19 Mobicaro","04.19 Mobicaro","04.19 Mobicaro","04.19 Mobicaro","04.19 Mobicaro"]
["19:05","перед",null,null,5,5,5,5,5,5,5,5,5,5,5,5,5,5,5,5,5,5,null,10,10,10,null,null,null,null,null,null,null,null,null,null,10,null,null,null,null,"04.19 Treasure X",null,null,null,null,null,null,null,null,"19:05","перед",null,null," Sale 04.19"," Sale 04.19"," Sale 04.19"," Sale 04.19"," Sale 04.19"," Sale 04.19"," Sale 04.19"," Sale 04.19"," Sale 04.19"," Sale 04.19","04.19 Pampers pants","04.19 Fleur Alpine","04.19 Heinz","04.19 Heinz","04.19 Heinz","04.19 Baby Go","04.19 Baby Go","04.19 Baby Go",null,"04.19 DemiStar","04.19 Lego City","04.19 Lego City"]
["19:20","перед",null,null,null,5,null,null,null,null,null,null,5,5,5,5,10,10,10,10,10,10,10,null,null,null,null,null,null,null,null,null,null,null,null,null,null,null,null,null,null,null,null,null,null,null,null,null,null,null,"19:20","перед",null,null,null," Sale 04.19",null,null,null,null,null,null,"04.19 Friso","04.19 Friso","04.19 Friso","04.19 Friso","04.19 Mega Bloks","04.19 Mega Bloks","04.19 Mega Bloks","04.19 Mega Bloks","04.19 Mega Bloks","04.19 Mega Bloks","04.19 Mega Bloks"]
["19:35","перед",null,null,5,null,null,null,null,null,null,null,10,10,10,10,10,null,null,null,null,null,null,null,null,null,null,null,null,null,null,null,null,null,null,null,null,null,null,null,null,null,null,null,null,null,null,null,null,null,"19:35","перед",null,null," Sale 04.19",null,null,null,null,null,null,null,"04.19 Jurassiс World","04.19 Jurassiс World","04.19 Jurassiс World","04.19 Jurassiс World","04.19 Barbie"]
["20:20","перед",null,null,5,5,5,5,5,null,null,null,5,5,5,5,null,null,null,10,10,10,10,5,5,5,null,null,null,null,null,null,null,null,null,null,null,null,null,null,null,null,null,null,null,null,null,null,null,null,"20:20","перед",null,null," Sale 04.19"," Sale 04.19"," Sale 04.19"," Sale 04.19"," Sale 04.19",null,null,null,"04.19 Pampers pants","04.19 Pampers pants","04.19 Pampers pants","04.19 Pampers pants",null,null,null,"04.19 FurReal","04.19 FurReal","04.19 FurReal","04.19 FurReal","04.19 Pampers premium","04.19 Pampers premium","04.19 Baby Go"]
["20:35","перед",null,null,null,null,null,null,null,null,null,null,5,5,10,null,null,null,null,null,null,null,null,5,5,5,null,null,null,null,null,null,null,null,null,null,null,null,null,null,null,null,null,null,null,null,null,null,null,null,"20:35","перед",null,null,null,null,null,null,null,null,null,null,"04.19 Friso","04.19 Friso","04.19 FurReal",null,null,null,null,null,null,null,null,"04.19 Heinz","04.19 Heinz","04.19 Heinz"]
["20:50","перед",null,null,null,null,null,null,null,null,null,null,null,null,null,null,null,null,null,null,null,null,null,null,10,10,null,null,null,null,null,null,null,null,null,null,null,null,null,null,null,null,null,null,null,null,null,null,null,null,"20:50","перед",null,null,null,null,null,null,null,null,null,null,null,null,null,null,null,null,null,null,null,null,null,null,"04.19 Treasure X","04.19 Treasure X"]
["21:05","перед",null,null,null,null,null,null,null,null,null,null,5,5,5,5,5,5,5,5,5,5,5,5,5,5,null,null,null,null,null,null,null,null,null,null,null,null,null,null,null,null,null,null,null,null,null,null,null,null,"21:05","перед",null,null,null,null,null,null,null,null,null,null,"04.19 Fleur Alpine","04.19 Fleur Alpine","04.19 Fleur Alpine","04.19 Fleur Alpine","04.19 Friso","04.19 Friso","04.19 Friso","04.19 Friso","04.19 Friso","04.19 Friso","04.19 Friso","04.19 Heinz","04.19 Friso","04.19 Baby Go"]
["21:20","перед",null,null,null,null,null,null,null,null,null,null,10,10,10,10,10,10,10,10,null,null,null,5,5,10,null,null,null,null,null,null,null,null,null,null,null,null,null,null,null,null,null,null,null,null,null,null,null,null,"21:20","перед",null,null,null,null,null,null,null,null,null,null,"04.19 Mega Bloks","04.19 Mega Bloks","04.19 Mega Bloks","04.19 Mega Bloks","04.19 FurReal","04.19 FurReal","04.19 FurReal","04.19 FurReal",null,null,null,"04.19 Baby Go","04.19 Baby Go","04.19 FurReal"]
["21:35","перед",null,null,null,null,null,null,null,null,null,null,null,10,null,null,null,null,null,null,null,null,null,10,10,null,null,null,null,null,null,null,null,null,null,null,null,null,null,null,null,null,null,null,null,null,null,null,null,null,"21:35","перед",null,null,null,null,null,null,null,null,null,null,null,"04.19 Transformers",null,null,null,null,null,null,null,null,null,"04.19 FurReal","04.19 FurReal"]
["22:20","перед",null,null,null,null,null,null,null,null,null,null,10,10,10,10,null,null,null,5,5,5,null,null,null,null,null,null,null,null,null,null,null,null,null,null,null,null,null,null,null,null,null,null,null,null,null,null,null,null,"22:20","перед",null,null,null,null,null,null,null,null,null,null,"04.19 Nerf","04.19 Nerf","04.19 Nerf","04.19 Nerf",null,null,null,"04.19 Friso","04.19 Friso","04.19 Friso"]
["22:35","перед",null,null,null,null,null,null,null,null,null,null,10,10,10,10,null,null,null,null,null,null,null,null,null,null,null,null,null,null,null,null,null,null,null,null,null,null,null,null,null,null,null,null,null,null,null,null,null,null,"22:35","перед",null,null,null,null,null,null,null,null,null,null,"04.19 Transformers","04.19 Transformers","04.19 Transformers","04.19 Transformers"]
["23:05","перед",null,null,null,null,null,null,null,null,null,null,null,null,null,null,null,null,null,null,null,null,null,5,5,5,null,null,null,null,null,null,null,null,null,null,null,null,null,null,null,null,null,null,null,null,null,null,null,null,"23:05","перед",null,null,null,null,null,null,null,null,null,null,null,null,null,null,null,null,null,null,null,null,null,"04.19 Friso","04.19 Friso","04.19 Friso"]
[null,null,{"$f":"IF(COUNT(C6:C59),COUNT(C6:C59),\"\")","v":""},"",18,18,17,17,18,14,14,13,43,44,44,40,31,32,31,38,33,29,26,31,33,30,"","","","","","","",null,null,null,null,null,null,null,null,null,null,null,null,null,null,null,null,null,null,null,{"$f":"IF(COUNT(BA6:BA59),COUNT(BA6:BA59),\"\")","v":""},{"$f":"IF(COUNT(BB6:BB59),COUNT(BB6:BB59),\"\")","v":""},{"$f":"IF(COUNT(BC6:BC59),COUNT(BC6:BC59),\"\")","v":""},{"$f":"IF(COUNT(BD6:BD59),COUNT(BD6:BD59),\"\")","v":""},{"$f":"IF(COUNT(BE6:BE59),COUNT(BE6:BE59),\"\")","v":""},{"$f":"IF(COUNT(BF6:BF59),COUNT(BF6:BF59),\"\")","v":""},{"$f":"IF(COUNT(BG6:BG59),COUNT(BG6:BG59),\"\")","v":""},{"$f":"IF(COUNT(BH6:BH59),COUNT(BH6:BH59),\"\")","v":""},{"$f":"IF(COUNT(BI6:BI59),COUNT(BI6:BI59),\"\")","v":""},{"$f":"IF(COUNT(BJ6:BJ59),COUNT(BJ6:BJ59),\"\")","v":""},{"$f":"IF(COUNT(BK6:BK59),COUNT(BK6:BK59),\"\")","v":""},{"$f":"IF(COUNT(BL6:BL59),COUNT(BL6:BL59),\"\")","v":""},{"$f":"IF(COUNT(BM6:BM59),COUNT(BM6:BM59),\"\")","v":""},{"$f":"IF(COUNT(BN6:BN59),COUNT(BN6:BN59),\"\")","v":""},{"$f":"IF(COUNT(BO6:BO59),COUNT(BO6:BO59),\"\")","v":""},{"$f":"IF(COUNT(BP6:BP59),COUNT(BP6:BP59),\"\")","v":""},{"$f":"IF(COUNT(BQ6:BQ59),COUNT(BQ6:BQ59),\"\")","v":""},{"$f":"IF(COUNT(BR6:BR59),COUNT(BR6:BR59),\"\")","v":""},{"$f":"IF(COUNT(BS6:BS59),COUNT(BS6:BS59),\"\")","v":""},{"$f":"IF(COUNT(BT6:BT59),COUNT(BT6:BT59),\"\")","v":""},{"$f":"IF(COUNT(BU6:BU59),COUNT(BU6:BU59),\"\")","v":""},{"$f":"IF(COUNT(BV6:BV59),COUNT(BV6:BV59),\"\")","v":""},{"$f":"IF(COUNT(BW6:BW59),COUNT(BW6:BW59),\"\")","v":""},{"$f":"IF(COUNT(BX6:BX59),COUNT(BX6:BX59),\"\")","v":""},{"$f":"IF(COUNT(BY6:BY59),COUNT(BY6:BY59),\"\")","v":""},{"$f":"IF(COUNT(BZ6:BZ59),COUNT(BZ6:BZ59),\"\")","v":""},{"$f":"IF(COUNT(CA6:CA59),COUNT(CA6:CA59),\"\")","v":""},{"$f":"IF(COUNT(CB6:CB59),COUNT(CB6:CB59),\"\")","v":""},{"$f":"IF(COUNT(CC6:CC59),COUNT(CC6:CC59),\"\")","v":""},{"$f":"IF(COUNT(CD6:CD59),COUNT(CD6:CD59),\"\")","v":""},{"$f":"IF(COUNT(CE6:CE59),COUNT(CE6:CE59),\"\")","v":""}]
[]
[null,null,null,null,null,null,null,null,null,null,null,null,null,null,null,null,null,null,null,null,null,null,null,null,null,null,null,null,null,null,null,null,"Всего спотов:",{"$f":"COUNT(C6:AG59)","v":614},null,null,null,null,null,null,null,null,null,null,null,null,null,null,null,null,null,null,null,null,null,null,null,null,null,null,null,null,null,null,null,null,null,null,null,null,null,null,null,null,null,null,null,null,null,null,null,null,"Всего спотов:"]
[null,null,null,null,null,null,null,null,null,null,null,null,null,null,null,null,null,null,null,null,null,null,null,null,null,null,null,null,null,null,null,null,"Всего секунд:",{"$f":"SUM(C6:AG59)","v":3950},null,null,null,null,null,null,null,null,null,null,null,null,null,null,null,null,null,null,null,null,null,null,null,null,null,null,null,null,null,null,null,null,null,null,null,null,null,null,null,null,null,null,null,null,null,null,null,null,"Всего секунд:"]